bitfinex-derivatives/quotes_ETHF0:USTF0_20250612
["timestamp","ask_amount","ask_price","bid_price","bid_amount"]
[1749753904551,3.2078,2725.6,2725.5,0.7336]
[1749753904942,3.2078,2725.6,2725.5,7.4416]
[1749753905451,3.94137,2725.6,2725.5,6.708]
[1749753905647,3.2078,2725.6,2725.5,7.4416]
[1749753907544,3.2078,2725.6,2725.3,0.00550428]
[1749753907744,0.73362,2725.4,2725.3,0.00550428]
[1749753908251,0.73378,2724.8,2724.7,0.00862004]
[1749753908448,3.2078,2725.0,2724.9,0.73376]
[1749753908843,3.2078,2725.0,2724.7,0.00862004]
[1749753909049,0.73378,2724.8,2724.7,0.74242004]
[1749753909249,0.73378,2724.8,2724.7,0.00862004]
[1749753909443,3.2078,2725.0,2724.9,0.73376]
[1749753910250,0.5949,2725.4,2724.8,4.4654]
[1749753910546,3.2078,2725.5,2725.4,0.73362]
[1749753910950,2.02035,2725.7,2725.6,0.73357]
[1749753911248,3.21330428,2725.8,2725.7,0.73354]
[1749753911849,0.00550428,2725.8,2725.7,0.73354]
[1749753912049,0.00550428,2725.8,2725.6,0.73356]
[1749753912355,0.73354,2725.7,2725.6,7.44257]
[1749753912543,0.73354,2725.7,2725.6,0.73357]
[1749753912747,3.21330428,2725.8,2725.4,0.6112]
[1749753912952,3.21330428,2725.8,2725.7,0.73354]
[1749753913248,3.21330428,2725.8,2725.7,7.44254]
[1749753913448,3.21330428,2725.8,2725.6,0.73355]
[1749753913752,0.73365,2725.3,2725.2,6.709]
[1749753914250,3.2078,2725.4,2725.3,0.73365]
[1749753914551,1.8787,2725.7,2725.6,0.73355]
[1749753914552,3.2078,2725.7,2725.6,0.73355]
[1749753914753,0.00550428,2725.8,2725.7,0.73354]
[1749753914947,0.00550428,2725.8,2725.7,7.44254]
[1749753915847,0.00550428,2725.8,2725.7,0.73354]
[1749753916056,0.00550428,2725.8,2725.3,3.2078]
[1749753916352,0.00550428,2725.8,2725.2,6.709]
[1749753916353,3.94136,2725.7,2725.6,0.73357]
[1749753916548,3.2078,2725.7,2725.2,9.83507]
[1749753916857,3.2078,2725.7,2725.6,0.73357]
[1749753917355,3.2078,2725.7,2725.6,7.44257]
[1749753917752,0.00550428,2725.8,2725.7,0.73354]
[1749753917955,0.00550428,2725.8,2725.7,2.65404]
[1749753918647,0.00550428,2725.8,2725.7,1.36214]
[1749753918855,0.00550428,2725.8,2725.7,8.07114]
[1749753921358,0.73902428,2725.8,2725.7,0.6286]
[1749753921557,1.83386,2725.7,2725.3,0.73363]
[1749753921857,0.7336,2725.5,2725.4,0.7336]
[1749753922350,3.94138,2725.6,2725.5,0.7336]
[1749753922552,3.2078,2725.6,2725.5,0.7336]
[1749753923751,3.94139,2725.6,2725.5,0.7336]
[1749753923956,0.73361,2725.5,2725.4,0.7336]
[1749753924154,0.7337,2725.2,2725.1,0.73369]
[1749753924449,0.73366,2725.3,2725.2,0.73367]
[1749753924646,0.73366,2725.3,2725.0,6.709]
[1749753924846,1.293,2725.5,2725.0,6.709]
[1749753925160,0.73363,2725.4,2725.3,0.73364]
[1749753925459,1.293,2725.5,2725.0,6.709]
[1749753925858,0.73364,2725.4,2725.3,0.73362]
[1749753926258,0.73369,2725.3,2725.2,0.73367]
[1749753926557,0.73364,2725.4,2725.3,0.73362]
[1749753926756,4.58789,2725.6,2725.0,15.75107]
[1749753926958,0.73363,2725.5,2725.4,0.7336]
[1749753927153,0.7337,2725.2,2725.1,0.73367]
[1749753927361,0.73365,2725.4,2725.3,0.73362]
[1749753927554,0.73365,2725.4,2725.0,10.709]
[1749753927555,0.73369,2725.3,2725.2,0.73366]
[1749753927755,0.7337,2725.1,2725.0,4.73373]
[1749753927961,2.01869,2725.2,2725.0,4.0]
[1749753928161,2.01869,2725.2,2725.1,0.7337]
[1749753928363,2.0187,2725.2,2725.1,0.7337]
[1749753928757,3.2078,2725.3,2725.0,4.0]
[1749753928758,3.2078,2725.3,2725.2,0.73368]
[1749753928957,3.2078,2725.3,2725.2,7.44268]
[1749753930164,3.94138,2725.6,2725.5,0.7336]
[1749753931667,3.2078,2725.6,2725.5,0.7336]
[1749753931961,0.7336,2726.1,2725.8,1.8338]
[1749753932168,3.2078,2726.5,2726.4,0.73335]
[1749753932466,3.2078,2726.5,2726.1,1.83353]
[1749753932467,3.2078,2726.8,2726.3,8.54244]
[1749753932654,3.2078,2726.8,2726.7,0.73327]
[1749753932859,3.2078,2727.4,2726.7,7.44227]
[1749753933062,0.73322,2726.9,2726.8,0.00550428]
[1749753933264,3.2078,2727.1,2727.0,0.73319]
[1749753933460,1.84910428,2727.3,2727.0,0.73319]
[1749753933461,0.73315,2727.2,2727.0,0.73318]
[1749753933866,0.00550428,2727.3,2726.8,11.21510428]
[1749753934067,0.73315,2727.2,2727.0,0.73318]
[1749753934265,0.00550428,2727.3,2726.8,11.21510428]
[1749753934458,0.73317,2727.1,2726.9,7.4772]
[1749753934954,0.73316,2727.2,2727.0,0.73318]
[1749753935157,0.00550428,2727.3,2727.2,0.73314]
[1749753936161,0.73316,2727.2,2727.0,0.73318]
[1749753936467,0.73314,2727.2,2727.1,0.73317]
[1749753936655,0.73863428,2727.3,2727.1,7.47717]
[1749753936858,0.73863428,2727.3,2727.2,0.73314]
[1749753937060,0.73314,2727.2,2727.1,0.73316]
[1749753937264,0.73314,2727.2,2727.1,7.47616]
[1749753937667,0.00550428,2727.3,2727.2,0.73314]
[1749753938064,0.00550428,2727.3,2727.2,4.56464]
[1749753938367,0.596,2727.9,2727.2,4.56464]
[1749753938368,0.596,2727.9,2727.2,5.1232]
[1749753938567,0.6534,2728.3,2727.9,0.73295]
[1749753938761,0.6534,2728.3,2727.6,5.04035]
[1749753938762,0.7329,2728.1,2728.0,6.743]
[1749753938964,3.2078,2728.1,2727.8,0.73297]
[1749753939166,3.2078,2728.1,2727.8,6.743]
[1749753939360,2.4494,2728.3,2727.8,7.47596]
[1749753939361,0.73295,2727.9,2727.8,7.47596]
[1749753939665,0.73295,2727.9,2727.8,6.743]
[1749753940167,5.04011,2728.1,2727.2,10.5735]
[1749753940368,0.73302,2727.7,2727.2,10.5735]
[1749753940667,1.1907,2728.0,2727.3,1.25]
[1749753940868,0.73304,2727.6,2727.5,0.73303]
[1749753941069,1.83239,2727.9,2727.2,10.5735]
[1749753941371,0.73302,2727.7,2727.6,0.733]
[1749753941577,0.73299,2727.8,2727.7,0.73297]
[1749753941870,0.733,2727.7,2727.6,0.73302]
[1749753942073,0.73303,2727.6,2727.5,6.742]
[1749753942876,1.83265,2727.6,2727.0,0.6114]
[1749753943072,0.73314,2727.2,2727.1,6.742]
[1749753943669,5.04056,2727.4,2726.8,0.73873428]
[1749753943670,3.2078,2727.4,2726.8,0.00550428]
[1749753943873,0.73321,2727.0,2726.9,0.7332]
[1749753944075,0.73314,2727.3,2727.2,0.73312]
[1749753944373,3.2078,2727.4,2727.0,0.73316]
[1749753944374,0.73318,2727.1,2727.0,0.73316]
[1749753944580,0.73318,2727.1,2727.0,7.47418]
[1749753944873,3.2078,2727.4,2727.0,7.47418]
[1749753944874,0.73316,2727.2,2727.1,0.73315]
[1749753945270,0.73317,2727.1,2727.0,7.47418]
[1749753945665,1.83267,2727.5,2726.9,3.941]
[1749753945666,1.83279,2727.3,2726.9,3.941]
[1749753945974,1.83279,2727.3,2726.8,0.00550428]
[1749753945975,0.73322,2726.9,2726.8,0.00550428]
[1749753946173,0.73322,2726.9,2726.8,6.74650428]
[1749753946472,0.73322,2726.9,2726.8,0.00550428]
[1749753947272,1.98782,2726.9,2726.8,4.00550428]
[1749753948878,1.83321,2726.7,2726.1,1.37303]
[1749753949172,0.73341,2726.2,2726.1,0.6396]
[1749753949871,0.73341,2726.2,2726.1,1.37304]
[1749753950477,0.7334,2726.3,2726.2,0.73338]
[1749753950773,0.73341,2726.2,2726.1,1.37302]
[1749753951075,0.7334,2726.3,2726.2,0.73338]
[1749753951669,0.73341,2726.2,2726.1,0.6396]
[1749753951877,0.73344,2726.1,2726.0,3.2078]
[1749753952273,0.73344,2726.1,2726.0,3.94126]
[1749753952469,0.73344,2726.1,2726.0,3.2078]
[1749753952675,0.73346,2726.0,2725.9,0.00550428]
[1749753953179,0.73365,2725.3,2725.2,3.2078]
[1749753953474,0.7337,2725.1,2725.0,4.0]
[1749753953670,3.9415,2725.1,2725.0,4.0]
[1749753954176,5.2352,2725.1,2725.0,4.0]
[1749753955472,3.2078,2725.5,2725.4,0.73362]
[1749753955672,0.625,2726.3,2726.1,0.73341]
[1749753955873,0.73342,2726.2,2726.1,3.2078]
[1749753956674,0.625,2726.3,2725.9,0.73348]
[1749753956675,0.73349,2726.0,2725.9,0.73348]
[1749753957276,0.73349,2725.9,2725.8,7.4765]
[1749753957476,0.73349,2726.0,2725.9,0.73348]
[1749753957673,0.73352,2725.8,2725.7,3.94133]
[1749753957974,0.73352,2725.8,2725.6,6.743]
[1749753958174,0.73354,2725.7,2725.6,6.743]
[1749753958380,0.73354,2725.8,2725.7,0.73354]
[1749753958579,0.73354,2725.8,2725.7,3.2078]
[1749753958780,0.73354,2725.8,2725.7,3.94134]
[1749753958979,0.73354,2725.8,2725.7,3.2078]
[1749753959376,0.73354,2725.7,2725.6,6.743]
[1749753959581,0.73354,2725.7,2725.6,3.2078]
[1749753960080,0.73354,2725.7,2725.6,3.94137]
[1749753960280,0.73354,2725.7,2725.6,3.2078]
[1749753960476,0.73362,2725.4,2725.3,9.9518]
[1749753960687,0.73362,2725.5,2725.4,0.73361]
[1749753961278,0.73362,2725.4,2725.3,3.94143]
[1749753961682,0.73362,2725.4,2725.3,3.2078]
[1749753961884,0.73362,2725.4,2725.3,0.73365]
[1749753962081,1.83393,2725.6,2725.0,36.1348]
[1749753962284,0.7337,2725.2,2725.1,0.73368]
[1749753962585,0.7337,2725.1,2725.0,4.0]
[1749753962783,0.7337,2725.1,2725.0,1e-05]
[1749753963088,0.7337,2725.1,2724.7,0.00862004]
[1749753963089,0.73378,2724.8,2724.7,0.00862004]
[1749753963384,0.73405,2723.8,2723.7,3.2078]
[1749753963986,0.73405,2723.8,2721.7,10.91309719]
[1749753963987,0.7343,2722.9,2722.8,3.2078]
[1749753964386,0.00550428,2723.1,2723.0,0.73427]
[1749753964582,0.00550428,2723.1,2722.8,14.9078]
[1749753964583,3.2078,2724.6,2723.8,0.73405]
[1749753964788,0.73405,2723.8,2723.6,0.73409]
[1749753964993,3.2078,2724.3,2723.7,0.73408]
[1749753965283,3.2078,2724.3,2723.9,0.73403]
[1749753965483,0.73403,2723.9,2723.8,0.00550428]
[1749753965885,5.73403,2723.9,2723.8,0.00550428]
[1749753966076,5.73403,2723.9,2723.8,4.28e-06]
[1749753966077,7.57253,2723.9,2723.8,4.28e-06]
[1749753966279,0.73424,2723.1,2723.0,3.2078]
[1749753966681,9.1368,2723.9,2723.1,0.73422]
[1749753966682,1.2418,2723.4,2723.1,0.73422]
[1749753966986,3.2078,2723.8,2723.6,0.73409]
[1749753967187,1.3006,2723.8,2723.2,3.2078]
[1749753967690,0.7341,2723.7,2723.2,3.2078]
[1749753967887,1.3006,2723.8,2723.0,3.2078]
[1749753968185,0.73423,2723.2,2723.0,3.2078]
[1749753968384,1.3006,2723.6,2723.0,3.2078]
[1749753968581,0.73421,2723.3,2723.1,0.73423]
[1749753968783,1.3006,2723.6,2723.0,3.2078]
[1749753969084,0.73426,2723.1,2723.0,4.0]
[1749753969585,3.2078,2723.4,2723.0,4.0]
[1749753969785,0.73424,2723.1,2723.0,4.0]
[1749753969982,0.73417,2723.4,2723.0,4.0]
[1749753970184,0.73414,2723.5,2723.3,0.73417]
[1749753970382,3.2078,2723.7,2723.0,7.2078]
[1749753970383,9.9108,2723.7,2723.0,7.2078]
[1749753970689,1.2226,2723.6,2723.0,7.2078]
[1749753970879,0.73424,2723.1,2723.0,7.94206]
[1749753971190,0.73424,2723.1,2723.0,7.2078]
[1749753971386,5.73424,2723.1,2723.0,3.15969572]
[1749753971582,1.2226,2723.2,2723.0,3.15969572]
[1749753971784,10.64504,2723.1,2723.0,3.15969572]
[1749753972080,11.28254,2723.1,2723.0,1.47909572]
[1749753972282,11.28254,2723.1,2721.2,3.6738]
[1749753972283,1.8357,2723.0,2720.8,0.15662666]
[1749753972491,3.2078,2721.8,2721.0,3.2078]
[1749753972681,3.2078,2721.8,2721.1,1.2645]
[1749753972981,1.83663,2721.6,2721.1,0.73478]
[1749753973182,3.2078,2721.8,2721.1,0.73476]
[1749753973385,0.73474,2721.3,2721.2,0.73476]
[1749753973682,9.9128,2721.5,2721.0,0.73479]
[1749753973887,9.9128,2721.5,2720.8,0.15662666]
[1749753973888,3.94256,2721.2,2721.1,0.73478]
[1749753974082,1.289,2721.4,2720.8,0.15662666]
[1749753974583,3.2078,2721.5,2720.8,0.15662666]
[1749753974584,7.4397,2721.5,2721.3,0.73472]
[1749753974785,4.4968,2721.9,2721.6,0.73462]
[1749753974993,0.73461,2721.8,2721.6,0.73462]
[1749753975289,0.73465,2721.6,2721.4,0.73468]
[1749753975481,3.2078,2721.9,2721.7,0.73462]
[1749753975681,3.94238,2721.9,2721.4,3.2078]
[1749753975880,3.2078,2721.9,2721.8,0.73459]
[1749753976082,0.73461,2721.8,2721.5,1.2275]
[1749753976381,0.73466,2721.6,2721.3,3.2078]
[1749753976581,3.86450428,2722.2,2721.4,3.2078]
[1749753976787,5.0444,2721.7,2721.0,3.2078]
[1749753976987,0.73478,2721.1,2721.0,3.2078]
[1749753977487,0.73484,2720.9,2720.1,3.2078]
[1749753977689,0.73484,2720.9,2720.4,0.73496]
[1749753977988,7.44084,2720.9,2720.1,3.2078]
[1749753978184,7.44084,2720.9,2720.3,0.73499]
[1749753978389,12.44084,2720.9,2720.1,3.94283]
[1749753978592,12.44084,2720.9,2720.1,3.2078]
[1749753978887,12.44084,2720.9,2720.8,4.15662666]
[1749753979588,7.44284,2720.9,2720.8,4.15662666]
[1749753979984,12.44284,2720.9,2720.8,4.15662666]
[1749753980184,12.44284,2720.9,2720.8,3.02813666]
[1749753980385,12.44284,2720.9,2720.8,0.74931666]
[1749753980580,0.73513,2719.8,2719.7,3.2078]
[1749753981085,0.00551521,2720.0,2719.9,0.73511]
[1749753981493,1.83704,2721.0,2720.3,0.73499]
[1749753981788,1.83717,2720.8,2720.3,3.94277]
[1749753981979,0.73497,2720.4,2720.3,3.94277]
[1749753982187,0.73497,2720.4,2720.3,3.2078]
[1749753982483,0.00551521,2720.6,2720.3,3.2078]
[1749753982685,0.73495,2720.5,2720.4,0.73495]
[1749753982886,0.00551521,2720.6,2720.4,1.2891]
[1749753983090,0.00551521,2720.6,2720.5,0.73494]
[1749753983292,0.73497,2720.4,2720.3,3.94278]
[1749753983591,0.73496,2720.5,2720.4,0.73496]
[1749753983888,0.73497,2720.4,2720.3,3.94278]
[1749753984088,0.73496,2720.5,2720.4,0.73496]
[1749753984288,0.00551521,2720.6,2720.5,0.73494]
[1749753984289,0.74044521,2720.6,2720.5,0.73494]
[1749753984489,0.00551521,2720.6,2720.5,0.73494]
[1749753984692,0.00551521,2720.6,2720.1,3.21331521]
[1749753984693,1.84286521,2720.6,2720.1,3.21331521]
[1749753984987,1.84286521,2720.6,2720.1,0.00551521]
[1749753984988,0.73503,2720.2,2720.1,0.00551521]
[1749753985192,0.73521,2719.5,2719.4,3.2078]
[1749753985986,3.2078,2719.5,2718.8,3.2078]
[1749753986194,3.2078,2719.5,2718.9,1.8062]
[1749753986492,3.2078,2719.9,2719.5,0.7352]
[1749753986683,3.2078,2720.2,2719.8,0.73511]
[1749753987004,3.2078,2720.5,2720.0,3.2078]
[1749753987190,0.73505,2720.2,2720.0,3.2078]
[1749753987387,0.73505,2720.1,2720.0,3.2078]
[1749753987592,0.73511,2719.9,2719.8,0.6163]
[1749753987794,0.73519,2719.6,2719.5,3.2078]
[1749753987994,0.73518,2719.7,2719.6,0.73519]
[1749753988194,3.2078,2720.1,2719.5,4.3986]
[1749753988499,0.73517,2719.7,2719.6,0.73517]
[1749753988699,3.2078,2720.1,2719.6,0.73517]
[1749753988889,3.2078,2720.1,2719.5,4.3986]
[1749753989094,0.73515,2719.8,2719.7,0.73516]
[1749753989292,0.73518,2719.7,2719.6,0.73518]
[1749753989492,0.73516,2719.7,2719.6,0.73517]
[1749753989699,3.2078,2720.1,2719.5,4.3986]
[1749753989897,3.2078,2720.1,2719.8,0.73511]
[1749753990097,0.73514,2719.8,2719.7,0.73515]
[1749753990305,0.73514,2719.8,2719.5,4.3986]
[1749753990502,3.2078,2720.4,2719.5,4.3986]
[1749753990694,0.73502,2720.3,2719.9,3.2078]
[1749753990999,0.00551521,2720.6,2720.0,1.8956]
[1749753991202,0.73501,2720.3,2720.0,1.8956]
[1749753991392,0.73504,2720.2,2720.1,3.8535]
[1749753991599,0.73502,2720.3,2720.1,0.6457]
[1749753991799,0.73498,2720.4,2720.3,0.73498]
[1749753991992,0.73501,2720.3,2720.2,1.98761]
[1749753992198,0.73503,2720.2,2720.1,0.6457]
[1749753992697,0.00551521,2720.6,2720.1,0.6457]
[1749753992897,0.73501,2720.3,2720.2,1.9876]
[1749753993094,0.73501,2720.3,2720.2,1.2526]
[1749753993404,0.73501,2720.3,2720.2,1.98763]
[1749753993600,0.73499,2720.4,2720.3,0.73498]
[1749753994499,0.00551521,2720.6,2720.2,1.2526]
[1749753994701,0.00551521,2720.6,2720.2,1.98761]
[1749753994902,0.73499,2720.4,2720.2,1.98761]
[1749753995102,0.73499,2720.4,2720.3,1.2697]
[1749753995601,0.73499,2720.4,2720.3,2.0047]
[1749753995801,0.73499,2720.4,2720.3,1.2697]
[1749753997298,0.73503,2720.2,2720.1,0.6457]
[1749753998206,0.73499,2720.4,2720.3,0.73497]
[1749753998502,0.00551521,2720.6,2720.5,0.73494]
[1749753999007,0.00551521,2720.6,2720.5,5.73494]
[1749753999402,0.00551521,2720.6,2720.5,0.73494]
[1749753999797,0.00551521,2720.6,2720.5,5.73494]
[1749754000002,1.8373,2720.6,2720.3,3.2078]
[1749754000302,0.7351,2720.7,2720.6,0.73492]
[1749754000498,0.7351,2720.7,2720.5,3.2078]
[1749754000701,0.7351,2720.7,2720.5,4.4765]
[1749754000908,0.7351,2720.7,2720.6,0.73492]
[1749754001908,0.73487,2720.8,2720.6,0.73492]
[1749754002309,0.73488,2720.8,2720.6,0.73491]
[1749754002810,0.73487,2720.8,2720.6,0.7349]
[1749754003106,0.00551521,2720.9,2720.5,4.4765]
[1749754003508,0.74036521,2720.9,2720.6,0.73489]
[1749754003706,0.00551521,2720.9,2720.7,1.93098]
[1749754003901,0.00551521,2720.9,2720.8,1.35426]
[1749754004207,0.00551521,2720.9,2720.8,3.20516]
[1749754005302,0.00551521,2720.9,2720.8,6.41296]
[1749754007615,0.441,2721.0,2720.9,0.73484]
[1749754007908,0.7349,2721.1,2721.0,0.73481]
[1749754008112,10.1888,2722.0,2721.6,0.73463]
[1749754008305,10.1888,2722.0,2721.3,5.04463]
[1749754008609,0.00551521,2721.9,2721.8,0.73459]
[1749754009208,3.2078,2722.3,2722.2,0.73449]
[1749754009508,3.94227,2722.3,2722.1,0.7345]
[1749754009704,0.28855154,2722.6,2722.1,3.2078]
[1749754009906,1.83602,2722.5,2721.9,1.99725]
[1749754010112,0.73452,2722.1,2721.9,0.73455]
[1749754010321,0.4408,2722.1,2721.7,3.85631521]
[1749754010613,0.4408,2722.1,2721.8,6.98]
[1749754011214,0.73455,2722.0,2721.8,7.71458]
[1749754011604,1.17533,2722.1,2721.8,6.98]
[1749754011804,1.17533,2722.1,2721.9,0.73456]
[1749754012215,0.4408,2722.1,2721.7,10.83631521]
[1749754012514,1.17532,2722.1,2721.9,0.73455]
[1749754012719,1.17531,2722.1,2721.9,0.73455]
[1749754013011,0.4408,2722.1,2721.7,3.85631521]
[1749754013211,0.73459,2721.8,2721.7,0.00551521]
[1749754013609,6.92909,2721.8,2721.7,0.00551521]
[1749754014611,1.83656,2721.7,2720.7,3.2078]
[1749754014914,10.1878,2721.9,2720.4,0.6291]
[1749754014915,0.73495,2720.5,2720.4,0.6291]
[1749754015110,0.73495,2720.5,2720.3,10.92278]
[1749754015311,0.73497,2720.4,2720.3,10.1878]
[1749754015511,0.73496,2720.5,2720.3,6.98]
[1749754015711,0.00551521,2720.6,2720.3,7.715]
[1749754015906,0.74045521,2720.6,2720.3,7.715]
[1749754016314,0.74044521,2720.6,2720.3,6.98]
[1749754016516,0.74044521,2720.6,2720.4,0.73497]
[1749754016718,0.00551521,2720.6,2720.3,6.98]
[1749754016914,0.73495,2720.5,2720.3,7.71499]
[1749754017217,0.00551521,2720.6,2720.3,7.71499]
[1749754017419,0.00551521,2720.6,2720.2,0.6371]
[1749754017618,0.73503,2720.2,2720.1,0.00551521]
[1749754018022,3.94283,2720.2,2720.1,0.00551521]
[1749754021723,0.73508,2720.0,2719.9,2.46531838]
[1749754022015,7.59308,2720.0,2719.9,2.46531838]
[1749754022217,12.59308,2720.0,2719.9,2.46531838]
[1749754022410,6.93998,2720.0,2719.9,2.46531838]
[1749754022613,0.73501,2720.3,2719.9,5.67311838]
[1749754022815,0.00551521,2720.6,2720.2,3.2078]
[1749754023024,1.83744,2720.4,2719.9,2.46531838]
[1749754023218,0.73508,2720.0,2719.9,2.46531838]
[1749754023418,4.4127,2720.3,2719.9,2.46531838]
[1749754023721,3.94288,2720.0,2719.9,1.00025261]
[1749754023922,3.94288,2720.0,2719.9,0.24513261]
[1749754024220,8.94288,2720.0,2719.9,2.61e-06]
[1749754024518,0.73508,2720.0,2719.9,2.61e-06]
[1749754024714,0.73507,2720.1,2719.9,2.61e-06]
[1749754024916,1.2501,2720.4,2719.9,2.61e-06]
[1749754025114,0.73504,2720.2,2719.9,0.73509261]
[1749754025324,0.73506,2720.1,2719.9,0.64640261]
[1749754025624,5.04526,2720.4,2719.9,0.64640261]
[1749754025813,5.04526,2720.4,2719.9,2.61e-06]
[1749754025814,0.73508,2720.0,2719.9,2.61e-06]
[1749754026012,29.26,2720.0,2719.1,3.2078]
[1749754026215,0.73526,2719.4,2719.1,3.94312]
[1749754026717,3.2078,2719.7,2719.1,3.2078]
[1749754026917,0.73528,2719.3,2719.1,3.2078]
[1749754027119,0.73529,2719.3,2719.1,3.2078]
[1749754027422,0.73529,2719.3,2718.9,7.5044]
[1749754027423,3.08813,2719.6,2718.9,1.38177]
[1749754027613,0.73529,2719.3,2719.0,0.73534]
[1749754027816,0.7353,2719.2,2719.0,1.2793]
[1749754028015,0.73535,2719.0,2718.9,0.6464]
[1749754028423,0.73543,2718.8,2718.5,5.85028]
[1749754028623,0.73539,2718.9,2718.6,0.73544]
[1749754028816,0.73541,2718.8,2718.5,4.57097]
[1749754029024,0.4413,2718.8,2718.5,3.8355]
[1749754029223,0.73546,2718.6,2718.5,3.8355]
[1749754029515,0.4413,2718.8,2718.7,0.73543]
[1749754029916,0.4413,2718.8,2718.7,5.73543]
[1749754030221,0.4413,2718.8,2718.5,5.85027]
[1749754030416,0.4413,2718.8,2718.5,5.1148]
[1749754030615,0.4413,2718.8,2718.7,0.73543]
[1749754031517,0.4413,2718.8,2718.5,5.1148]
[1749754032123,0.73545,2718.7,2718.5,5.1148]
[1749754032322,0.73545,2718.7,2718.5,3.8355]
[1749754032518,0.4413,2718.8,2718.5,3.8355]
[1749754032717,0.4413,2718.8,2718.7,0.73543]
[1749754033231,0.4413,2718.8,2718.1,3.2078]
[1749754033419,0.4413,2718.8,2718.6,0.73546]
[1749754033718,0.4413,2718.8,2718.4,3.2078]
[1749754033921,0.00551521,2719.2,2718.7,3.94323]
[1749754034122,0.00551521,2719.2,2719.1,0.73533]
[1749754034321,3.2078,2719.9,2719.3,1.83819]
[1749754034519,3.2078,2719.9,2719.7,0.73514]
[1749754034726,3.2078,2720.3,2719.5,11.90682]
[1749754034926,3.2078,2720.3,2719.6,1.2987]
[1749754035122,1.83765,2720.1,2719.5,3.2078]
[1749754035429,3.94298,2719.7,2719.5,0.00551521]
[1749754035829,3.2078,2719.7,2719.5,0.00551521]
[1749754036022,3.9429,2720.0,2719.7,0.73516]
[1749754036523,0.73512,2719.9,2719.7,0.6085]
[1749754036922,3.2078,2720.0,2719.7,0.6085]
[1749754037116,0.73514,2719.8,2719.7,0.6085]
[1749754037330,0.73514,2719.8,2719.5,0.00551521]
[1749754037331,0.73519,2719.6,2719.5,0.00551521]
[1749754038623,2.03769,2719.6,2719.5,0.00551521]
[1749754038831,7.03769,2719.6,2719.5,0.00551521]
[1749754039322,2.03769,2719.6,2719.5,0.00551521]
[1749754039526,0.73519,2719.6,2719.5,0.00551521]
[1749754039727,3.2078,2719.7,2719.6,0.73519]
[1749754039924,3.94297,2719.7,2719.5,0.74072521]
[1749754040325,3.2078,2719.7,2719.6,0.73519]
[1749754040625,3.2078,2719.7,2719.5,0.00551521]
[1749754040934,0.73519,2719.6,2719.5,0.00551521]
[1749754042332,2.02169,2719.6,2719.5,0.00551521]
[1749754042526,0.73519,2719.6,2719.5,0.00551521]
[1749754046330,0.7351,2720.0,2719.5,0.00551521]
[1749754046532,0.73516,2719.8,2719.6,3.2078]
[1749754046737,0.00551521,2720.1,2719.5,3.64387086]
[1749754046738,0.73519,2719.6,2719.5,0.00551521]
[1749754047032,0.73517,2719.7,2719.5,0.74072521]
[1749754047233,0.73519,2719.6,2719.5,0.00551521]
[1749754049130,3.2078,2719.7,2719.5,0.00551521]
[1749754049329,0.73519,2719.6,2719.5,4.00551521]
[1749754050238,1.93929,2719.6,2719.5,4.00551521]
[1749754052139,3.2078,2719.7,2719.5,4.00551521]
[1749754052538,3.94297,2719.7,2719.5,4.74071521]
[1749754052744,0.73519,2719.6,2719.5,4.74071521]
[1749754052946,0.73519,2719.6,2719.5,4.00551521]
[1749754053953,3.2078,2719.7,2719.6,0.73519]
[1749754054244,10.1048,2720.2,2719.5,10.11648086]
[1749754054544,3.2078,2720.2,2720.0,0.73508]
[1749754054740,3.2078,2720.2,2719.6,5.94508565]
[1749754054741,3.2078,2720.2,2719.9,0.7351]
[1749754055140,3.2078,2720.2,2720.0,0.73508]
[1749754055339,3.2078,2720.2,2720.0,4.87894565]
[1749754055540,3.2078,2720.5,2720.0,16.77594565]
[1749754056045,0.73505,2720.2,2720.0,11.77594565]
[1749754056343,3.2078,2720.5,2720.0,11.77594565]
[1749754056847,0.73501,2720.3,2720.0,11.77594565]
[1749754057050,3.2078,2720.5,2720.0,11.77594565]
[1749754057345,0.73498,2720.4,2720.0,11.77594565]
[1749754057748,0.73498,2720.4,2720.0,8.87278]
[1749754057946,0.2506,2720.7,2720.0,11.77594565]
[1749754058251,0.2506,2720.7,2720.6,0.73492]
[1749754059339,3.6487,2721.1,2721.0,0.73481]
[1749754059543,0.4409,2721.1,2721.0,0.73481]
[1749754059949,0.74025521,2721.3,2721.0,0.73481]
[1749754060146,0.00551521,2721.3,2721.2,0.73476]
[1749754060842,3.2078,2721.9,2721.4,1.83674]
[1749754061155,0.73461,2721.8,2721.7,0.7346]
[1749754061448,3.94238,2721.9,2721.8,0.7346]
[1749754061648,0.7346,2721.8,2721.7,0.73461]
[1749754061950,3.2078,2721.9,2721.7,0.73462]
[1749754062149,0.73462,2721.8,2721.5,5.033]
[1749754062347,0.73462,2721.8,2721.7,0.73462]
[1749754062546,3.94239,2721.9,2721.7,0.7346]
[1749754062845,3.2078,2721.9,2721.8,0.7346]
[1749754063248,3.2078,2721.9,2721.7,0.7346]
[1749754063445,3.21331521,2722.0,2720.7,3.2078]
[1749754063747,0.73479,2721.1,2721.0,0.64041521]
[1749754063947,0.73479,2721.1,2721.0,0.00551521]
[1749754066443,3.2078,2721.3,2721.0,0.00551521]
[1749754066645,0.73479,2721.1,2721.0,0.00551521]
[1749754067041,3.2078,2721.3,2721.0,0.74031521]
[1749754067245,0.73479,2721.1,2721.0,0.00551521]
[1749754067755,0.73479,2721.1,2721.0,0.74032521]
[1749754067953,0.73479,2721.1,2721.0,0.00551521]
[1749754068155,0.73479,2721.1,2721.0,0.74033521]
[1749754068455,0.73479,2721.1,2721.0,0.00551521]
[1749754071657,3.2078,2721.3,2721.0,0.00551521]